fUST/lending_fUST_20240112
["ID","MTS","AMOUNT","RATE_DAILY","PERIOD"]
[311279355,1705012249379,-500.0,0.00031232,2]
[311279356,1705012249388,-1127.39,0.00031232,2]
[311279357,1705012249397,-500.0,0.00031232,2]
[311279358,1705012249407,-160.63126229,0.00031267,7]
[311279359,1705012249416,-200.0,0.000313,4]
[311279360,1705012249425,-154.09671268,0.00031436,7]
[311279361,1705012249434,-1500.0,0.000315,2]
[311279362,1705012249442,-539.5,0.00031506,2]
[311279363,1705012249451,-500.0,0.00031506,2]
[311279364,1705012249461,-500.0,0.00031506,2]
[311279365,1705012249470,-500.0,0.00031506,2]
[311279366,1705012249479,-500.0,0.00031506,2]
[311279367,1705012249488,-277.69274946,0.00031506,2]
[311279368,1705012249497,-1166.65,0.00031506,2]
[311279369,1705012249506,-500.0,0.00031506,2]
[311279370,1705012249516,-500.0,0.00031506,2]
[311279371,1705012249525,-500.0,0.00031506,2]
[311279372,1705012249535,-500.0,0.00031506,2]
[311279373,1705012249545,-1855.2,0.00031506,2]
[311279374,1705012249556,-500.0,0.00031506,2]
[311279375,1705012249565,-13819.95,0.00031506,2]
[311279376,1705012249578,-500.0,0.00031506,2]
[311279377,1705012249587,-563.46,0.00031506,2]
[311279378,1705012249597,-500.0,0.00031506,2]
[311279379,1705012249606,-500.0,0.00031506,2]
[311279380,1705012249615,-500.0,0.00031506,2]
[311279381,1705012249625,-503.08,0.00031506,2]
[311279382,1705012249634,-1711.83,0.00031506,2]
[311279383,1705012249645,-500.0,0.00031506,2]
[311279384,1705012249657,-3099.55,0.00031506,2]
[311279385,1705012249666,-665.68,0.00031506,2]
[311279386,1705012249676,-517.12,0.00031506,2]
[311279387,1705012249685,-6041.06,0.00031506,2]
[311279388,1705012249694,-500.0,0.00031506,2]
[311279389,1705012249703,-852.98,0.00031506,2]
[311279390,1705012249712,-1642.11,0.00031506,2]
[311279391,1705012249721,-500.0,0.00031506,2]
[311279392,1705012249731,-565.74,0.00031506,2]
[311279393,1705012249740,-279.26281635,0.00031506,2]
[311279394,1705012249749,-500.0,0.00031506,2]
[311279395,1705012249758,-1152.99,0.00031506,2]
[311279396,1705012249768,-687.44,0.00031506,2]
[311279397,1705012249778,-500.0,0.00031506,2]
[311279398,1705012249787,-522.3,0.00031506,2]
[311279399,1705012249797,-570.42,0.00031506,2]
[311279400,1705012249807,-333.2,0.00031506,2]
[311279401,1705012249816,-1127.39,0.00031506,2]
[311279402,1705012249826,-500.0,0.00031506,2]
[311279403,1705012249835,-155.0,0.00031507,2]
[311279404,1705012249845,-151.05589068,0.00031665,2]
[311279405,1705012249854,-250.58359593,0.00031665,2]
[311279406,1705012249864,-160.63126229,0.00031761,7]
[311279407,1705012249874,-539.5,0.0003178,2]
[311279408,1705012249884,-500.0,0.0003178,2]
[311279409,1705012249893,-500.0,0.0003178,2]
[311279410,1705012249902,-419.61547142,0.0003178,2]
[311279411,1705012249911,-500.0,0.0003178,2]
[311279412,1705012249921,-1166.65,0.0003178,2]
[311279413,1705012249930,-500.0,0.0003178,2]
[311279414,1705012249939,-500.0,0.0003178,2]
[311279415,1705012249948,-500.0,0.0003178,2]
[311279416,1705012249957,-500.0,0.0003178,2]
[311279417,1705012249966,-1855.2,0.0003178,2]
[311279418,1705012249975,-500.0,0.0003178,2]
[311279419,1705012249984,-13819.95,0.0003178,2]
[311279420,1705012249993,-500.0,0.0003178,2]
[311279421,1705012250003,-500.0,0.0003178,2]
[311279422,1705012250012,-500.0,0.0003178,2]
[311279423,1705012250022,-320.14,0.0003178,2]
[311279424,1705012250031,-503.08,0.0003178,2]
[311279425,1705012250041,-1711.83,0.0003178,2]
[311279426,1705012250051,-500.0,0.0003178,2]
[311279427,1705012250061,-3099.55,0.0003178,2]
[311279428,1705012250073,-665.68,0.0003178,2]
[311279429,1705012250082,-517.12,0.0003178,2]
[311279430,1705012250092,-6041.06,0.0003178,2]
[311279431,1705012250101,-500.0,0.0003178,2]
[311279432,1705012250111,-852.98,0.0003178,2]
[311279433,1705012250120,-1642.11,0.0003178,2]
[311279434,1705012250129,-500.0,0.0003178,2]
[311279435,1705012250138,-565.74,0.0003178,2]
[311279436,1705012250147,-500.0,0.0003178,2]
[311279437,1705012250157,-1152.99,0.0003178,2]
[311279438,1705012250243,-687.44,0.0003178,2]
[311279439,1705012250253,-500.0,0.0003178,2]
[311279440,1705012250263,-522.3,0.0003178,2]
[311279441,1705012250272,-570.42,0.0003178,2]
[311279442,1705012250282,-1127.39,0.0003178,2]
[311279443,1705012250292,-500.0,0.0003178,2]
[311279444,1705012250305,-1212.48495761,0.000318,2]
[311279445,1705012250314,-1172.98987625,0.000318,2]
[311279446,1705012250323,-151.0,0.00031958,2]
[311279447,1705012250333,-13278.2213,0.00031999,2]
[311279448,1705012250342,-496.49859958,0.00031999,2]
[311279449,1705012250352,-429.97258824,0.00031999,2]
[311279450,1705012250361,-500.0,0.00031999,2]
[311279451,1705012250371,-399.96558986,0.00031999,2]
[311279452,1705012250380,-500.0,0.00031999,2]
[311279453,1705012250390,-562.9865291,0.00031999,2]
[311279454,1705012250400,-500.0,0.00031999,2]
[311279455,1705012250409,-259.94211763,0.00031999,2]
[311279456,1705012250420,-687.65388926,0.00032,2]
[311279457,1705012250430,-194.85553355,0.00032,4]
[311279458,1705012250439,-5999.99,0.00032,2]
[311279459,1705012250449,-5999.99,0.00032,2]
[311279460,1705012250459,-620.00034929,0.0003201,2]
[311279461,1705012250468,-1000.0,0.00032045,7]
[311279462,1705012250478,-539.5,0.00032054,2]
[311279463,1705012250487,-500.0,0.00032054,2]
[311279464,1705012250498,-214.58,0.00032054,2]
[311279465,1705012250508,-500.0,0.00032054,2]
[311279466,1705012250518,-1166.65,0.00032054,2]
[311279467,1705012250529,-500.0,0.00032054,2]
[311279468,1705012250540,-500.0,0.00032054,2]
[311279469,1705012250552,-500.0,0.00032054,2]
[311279470,1705012250563,-500.0,0.00032054,2]
[311279471,1705012250572,-1855.2,0.00032054,2]
[311279472,1705012250583,-500.0,0.00032054,2]
[311279473,1705012250593,-13819.95,0.00032054,2]
[311279474,1705012250603,-500.0,0.00032054,2]
[311279475,1705012250613,-500.0,0.00032054,2]
[311279476,1705012250623,-500.0,0.00032054,2]
[311279477,1705012250633,-503.08,0.00032054,2]
[311279478,1705012250644,-1711.83,0.00032054,2]
[311279479,1705012250657,-500.0,0.00032054,2]
[311279480,1705012250667,-3099.55,0.00032054,2]
[311279481,1705012250677,-665.68,0.00032054,2]
[311279482,1705012250687,-517.12,0.00032054,2]
[311279483,1705012250696,-6041.06,0.00032054,2]
[311279484,1705012250707,-500.0,0.00032054,2]
[311279485,1705012250717,-852.98,0.00032054,2]
[311279486,1705012250727,-1642.11,0.00032054,2]
[311279487,1705012250738,-500.0,0.00032054,2]
[311279488,1705012250748,-565.74,0.00032054,2]
[311279489,1705012250758,-500.0,0.00032054,2]
[311279490,1705012250769,-1152.99,0.00032054,2]
[311279491,1705012250782,-687.44,0.00032054,2]
[311279492,1705012250804,-500.0,0.00032054,2]
[311279493,1705012250821,-522.3,0.00032054,2]
[311279494,1705012250831,-570.42,0.00032054,2]
[311279495,1705012250841,-1127.39,0.00032054,2]
[311279496,1705012250851,-500.0,0.00032054,2]
[311279497,1705012250860,-154.09671268,0.00032089,7]
[311279498,1705012250870,-302.11178136,0.00032197,4]
[311279499,1705012250881,-1000.0,0.00032297,2]
[311279500,1705012250890,-539.5,0.00032328,2]
[311279501,1705012250900,-500.0,0.00032328,2]
[311279502,1705012250909,-500.0,0.00032328,2]
[311279503,1705012250918,-1166.65,0.00032328,2]
[311279504,1705012250928,-500.0,0.00032328,2]
[311279505,1705012250937,-571.78,0.00032328,2]
[311279506,1705012250946,-500.0,0.00032328,2]
[311279507,1705012250955,-503.57169132,0.00032328,2]
[311279508,1705012250964,-1855.2,0.00032328,2]
[311279509,1705012250973,-500.0,0.00032328,2]
[311279510,1705012250983,-13819.95,0.00032328,2]
[311279511,1705012250992,-500.0,0.00032328,2]
[311279512,1705012251002,-500.0,0.00032328,2]
[311279513,1705012251011,-500.0,0.00032328,2]
[311279514,1705012251020,-503.08,0.00032328,2]
[311279515,1705012251029,-1711.83,0.00032328,2]
[311279516,1705012251039,-500.0,0.00032328,2]
[311279517,1705012251049,-3099.55,0.00032328,2]
[311279518,1705012251059,-665.68,0.00032328,2]
[311279519,1705012251068,-517.12,0.00032328,2]
[311279520,1705012251077,-6041.06,0.00032328,2]
[311279521,1705012251087,-852.98,0.00032328,2]
[311279522,1705012251096,-1642.11,0.00032328,2]
[311279523,1705012251105,-500.0,0.00032328,2]
[311279524,1705012251114,-565.74,0.00032328,2]
[311279525,1705012251123,-500.0,0.00032328,2]
[311279526,1705012251133,-1152.99,0.00032328,2]
[311279527,1705012251142,-687.44,0.00032328,2]
[311279528,1705012251152,-500.0,0.00032328,2]
[311279529,1705012251161,-522.3,0.00032328,2]
[311279530,1705012251170,-570.42,0.00032328,2]
[311279531,1705012251180,-1127.39,0.00032328,2]
[311279532,1705012251190,-500.0,0.00032328,2]
[311279533,1705012251206,-1000.0,0.00032344,2]
[311279534,1705012251227,-1000.0,0.00032437,2]
[311279535,1705012251237,-3272.72787271,0.00032458,2]
[311279536,1705012251246,-154.09671268,0.00032476,7]
[311279537,1705012251255,-300.0,0.00032489,2]
[311279538,1705012251264,-451.6819269,0.00032498,4]
[311279539,1705012251273,-978.88032498,0.00032498,4]
[311279540,1705012251283,-392.45127751,0.00032498,4]
[311279541,1705012251292,-502.92091515,0.00032498,4]
[311279542,1705012251302,-294.63951312,0.00032498,4]
[311279543,1705012251311,-491.5672105,0.00032498,4]
[311279544,1705012251321,-664.08521792,0.00032498,4]
[311279545,1705012251331,-691.48807742,0.00032498,4]
[311279546,1705012251340,-407.48183567,0.00032498,4]
[311279547,1705012251349,-677.62834989,0.00032498,4]
[311279548,1705012251358,-176.99463356,0.00032498,4]
[311279549,1705012251368,-155.22477103,0.00032498,4]
[311279550,1705012251377,-1383.1054638,0.00032499,3]
[311279551,1705012251386,-262389.75639392,0.000325,20]
[311279552,1705012563226,155.06047358,0.00023476,4]
[311279563,1705013265492,155.06202481,0.0001065,2]
[311279586,1705013432508,-615.66230742,0.00011719,2]
[311279587,1705013432518,-1220.46777881,0.0001172,2]
[311279588,1705013432528,-874.79068657,0.0001172,2]
[311279589,1705013432537,-4789.41827786,0.00011721,2]
[311279590,1705013432546,-964.75498104,0.00011722,2]
[311279591,1705013432555,-155.06202481,0.00011722,2]
[311279592,1705013432564,-678.90210458,0.00011723,2]
[311279594,1705013432574,-166.35364662,0.00011723,2]
[311279596,1705013432583,-156.66039464,0.00011723,2]
[311279598,1705013432592,-158.11687987,0.00011724,2]
[311279599,1705013432601,-36895.86463632,0.00011818,2]
[311279600,1705013432610,-72924.20272514,0.00011819,2]
[311279601,1705013432622,-354.01145521,0.00011819,2]
[311279602,1705013432633,-2397.6326081,0.00011819,2]
[311279603,1705013432645,-5390.02089869,0.00011819,2]
[311279604,1705013432654,-20836.46606025,0.0001182,2]
[311279605,1705013432663,-6736.60673052,0.0001182,2]
[311279606,1705013432675,-2832.19400193,0.0001182,2]
[311279607,1705013432697,-0.38137024,0.0001182,2]
[311279639,1705013438656,-155.06202481,0.00011718,2]
[311279641,1705013438667,-2708.97417906,0.00011718,2]
[311279643,1705013438676,-587.15396194,0.00011718,2]
[311279646,1705013438686,-14247.76667021,0.0001182,2]
[311279647,1705013438695,-15193.63475662,0.00011821,2]
[311279649,1705013438704,-224.23922304,0.00011821,2]
[311279651,1705013438714,-155.90985007,0.00011821,2]
[311279653,1705013438723,-1746.77476578,0.00011821,2]
[311279655,1705013438732,-311.30518423,0.00011821,2]
[311279657,1705013438741,-155.06202481,0.00011822,2]
[311279659,1705013438750,-482.65783835,0.00011822,2]
[311279661,1705013438760,-270.65200979,0.00011822,2]
[311279663,1705013438769,-270787.85398816,0.00011822,2]
[311279665,1705013438778,-451.81472846,0.00011826,2]
[311279668,1705013438788,-198.86702102,0.00011829,2]
[311279671,1705013438797,-309.9024536,0.00011834,2]
[311279673,1705013438806,-525.71054623,0.00011838,2]
[311279675,1705013438815,-7945.04739538,0.00011842,2]
[311279677,1705013438825,-554.2709692,0.00011856,2]
[311279678,1705013438834,-469.71701685,0.00011875,2]
[311279680,1705013438843,-2070.70229933,0.00011875,2]
[311279681,1705013438852,-178.96994879,0.000129,2]
[311279682,1705013438861,-300.605335,0.00013699,2]
[311279683,1705013438870,-20865.20196494,0.00014995,2]
[311279685,1705013438879,-389.3204731,0.00015,2]
[311279687,1705013438890,-2698.75957629,0.00015,2]
[311279689,1705013438898,-155.06047358,0.00015,2]
[311279691,1705013438907,-686.6489252,0.00015,2]
[311279693,1705013438916,-272.00985266,0.000165,2]
[311279695,1705013438926,-246.10686283,0.000178,2]
[311279697,1705013438935,-10503.19627673,0.00017898,2]
[311279699,1705013438944,-1503.98113969,0.00018981,2]
[311279701,1705013438953,-155.06047358,0.0002,2]
[311279703,1705013438962,-300.605335,0.00020548,2]
[311279705,1705013438971,-5824.12233106,0.00020995,2]
[311279707,1705013438980,-1870.79564102,0.00021,2]
[311279709,1705013438990,-189.2600991,0.00021918,2]
[311279711,1705013438999,-21358.8379819,0.00022317,2]
[311279713,1705013439008,-2093.45221107,0.00023,2]
[311279715,1705013439017,-1174.193728,0.00023476,2]
[311279717,1705013439027,-200.0,0.00023476,2]
[311279719,1705013439036,-614.12133667,0.00024,2]
[311279721,1705013439045,-4005.39956635,0.00024,2]
[311279723,1705013439054,-4711.91259146,0.00025,2]
[311279725,1705013439063,-155.06047358,0.00027,7]
[311279727,1705013439072,-460.6542226,0.00027,2]
[311279729,1705013439081,-1286.33656126,0.000273,4]
[311279731,1705013439090,-14217.43636813,0.00028807,4]
[311279733,1705013439098,-155.05892239,0.00029,2]
[311279734,1705013439107,-3025.449916,0.00029,2]
[311279737,1705013439116,-3366.49135836,0.0002923,5]
[311279739,1705013439125,-154.09671268,0.000294,2]
[311279740,1705013439135,-200.22215,0.00029606,2]
[311279742,1705013439144,-187.649713,0.00029606,2]
[311279744,1705013439153,-176.045272,0.00029606,2]
[311279746,1705013439163,-240.266579,0.00029606,2]
[311279748,1705013439172,-152.31739519,0.00029864,2]
[311279750,1705013439183,-176.045272,0.00029977,2]
[311279752,1705013439192,-240.266579,0.00029977,2]
[311279754,1705013439201,-1713.4,0.00029999,2]
[311279756,1705013439210,-1713.4,0.00029999,2]
[311279758,1705013439219,-1713.4,0.00029999,2]
[311279761,1705013439229,-1713.4,0.00029999,2]
[311279763,1705013439239,-1713.4,0.00029999,2]
[311279765,1705013439247,-1713.4,0.00029999,2]
[311279766,1705013439257,-1713.4,0.00029999,2]
[311279769,1705013439266,-1713.4,0.00029999,2]
[311279771,1705013439275,-1713.4,0.00029999,2]
[311279773,1705013439285,-1713.4,0.00029999,2]
[311279775,1705013439294,-10528.61647802,0.0003,4]
[311279777,1705013439303,-2151.8403773,0.0003,4]
[311279779,1705013439312,-6975.26133049,0.0003,4]
[311279781,1705013439321,-155.05892239,0.0003,2]
[311279783,1705013439329,-571.17512685,0.0003,2]
[311279785,1705013439339,-154329.13315596,0.0003,11]
[311279787,1705013439351,-10202.84952288,0.0003,11]
[311279826,1705013442067,-1228.29004983,0.0003,11]
[311279862,1705013448726,-155.0,0.00027397,2]
[311279863,1705013448736,-156.1230049,0.00028767,2]
[311279864,1705013448745,-165.26312866,0.00029998,2]
[311279865,1705013448754,-156.66039464,0.00029998,2]
[311279866,1705013448763,-1220.46777881,0.00029999,2]
[311279867,1705013448772,-14557.76281176,0.00029999,2]
[311279868,1705013467079,292.67088821,0.00022,4]
[311279877,1705013685956,-155.06667867,0.00017599,2]
[311279878,1705013685985,-148.78347697,0.000176,2]
[311279879,1705013686084,-6.20102358,0.000176,2]
[311279886,1705013721318,-535.93670888,0.000176,2]
[311279887,1705013721496,-10.93748385,0.000176,2]
[311279911,1705013761535,-166.35364662,0.00017599,2]
[311279912,1705013761562,-180.80473299,0.000176,2]
[311279913,1705013761645,-7.08486489,0.000176,2]
[311279928,1705013794283,-155.06823002,0.00017511,2]
[311279929,1705013794311,-148.69237978,0.00017512,2]
[311279930,1705013794541,-6.19919612,0.00017512,2]
[311279942,1705013856502,-335.50312455,0.00017512,2]
[311279943,1705013856680,-6.84700254,0.00017512,2]
[311279944,1705013858382,328.65612201,0.00017512,2]
[311279945,1705013858423,335.50312455,0.00017512,2]
[311279946,1705013858454,335.50312455,0.00017512,2]
[311279947,1705013858909,-2774.50414272,0.00017512,2]
[311279948,1705013859008,-56.62253352,0.00017512,2]
[311279950,1705013860904,546.667706,0.00017512,2]
[311279951,1705013862051,533.98993958,0.00017512,2]
[311279952,1705013862385,1.7444123,0.00017512,2]
[311279953,1705013862804,-605.23045684,0.00017512,2]
[311279954,1705013862921,-12.35164198,0.00017512,2]
[311279956,1705013869050,-1235.81395022,0.00017512,2]
[311279957,1705013869328,-25.22069286,0.00017512,2]
[311279960,1705013888847,-257.24054883,0.00017512,2]
[311279961,1705013889158,-5.24980712,0.00017512,2]
[311279977,1705014035866,-3299.16153119,0.00019332,2]
[311279978,1705014036142,-67.32982717,0.00019332,2]
[311279979,1705014041460,-672.9159467,0.00019331,2]
[311279980,1705014041585,-13.7329785,0.00019331,2]
[311279983,1705014086869,-1089.9773918,0.000195,2]
[311279984,1705014087165,-22.24443657,0.000195,2]
[311280021,1705014166698,1482.0,0.0003,30]
[311280034,1705014323192,-466.77120588,0.00019177,2]
[311280035,1705014323219,-153.1701202,0.00019178,2]
[311280036,1705014323288,-12.6518638,0.00019178,2]
[311280041,1705014378520,-410.7739066,0.000189,2]
[311280042,1705014378596,-8.38314095,0.000189,2]
[311280044,1705014398296,-155.06512735,0.00019701,2]
[311280045,1705014398325,-149.07488477,0.00019702,2]
[311280046,1705014398452,-6.20693902,0.00019702,2]
[311280047,1705014412137,-2654.79469548,0.00019797,2]
[311280048,1705014412293,-54.17948358,0.00019797,2]
[311280049,1705014413156,1566.822648,0.00018803,2]
[311280051,1705014418733,-1702.79380896,0.00019797,2]
[311280052,1705014418852,-34.75089406,0.00019797,2]
[311280053,1705014419877,246.10686283,0.00019797,2]
[311280054,1705014427321,-857.29487284,0.00019797,2]
[311280055,1705014427522,-17.49581373,0.00019797,2]
[311280056,1705014427550,-839.79905911,0.00019797,2]
[311280057,1705014427747,-857.29487284,0.00019797,2]
[311280058,1705014427840,-857.29487284,0.00019797,2]
[311280059,1705014427878,-12000.0,0.00019797,2]
[311280060,1705014428010,-12000.0,0.00019797,2]
[311280061,1705014428069,-10341.47583153,0.00019797,2]
[311280062,1705014432741,-12000.0,0.00019797,2]
[311280063,1705014432955,-3193.63475662,0.00019797,2]
[311280064,1705014434855,678.90210458,0.00019797,2]
[311280066,1705014444155,-1994.45136184,0.00019797,2]
[311280067,1705014444255,-40.70308902,0.00019797,2]
[311280070,1705014449786,-603.34906127,0.00019797,2]
[311280071,1705014450120,-12.31324615,0.00019797,2]
[311280072,1705014460367,-12000.0,0.00019797,2]
[311280073,1705014460523,-12000.0,0.00019797,2]
[311280074,1705014460872,-12000.0,0.00019797,2]
[311280075,1705014460991,-12000.0,0.00019797,2]
[311280076,1705014461154,-12000.0,0.00019797,2]
[311280077,1705014461248,-12000.0,0.00019797,2]
[311280078,1705014461359,-9065.86768714,0.00019797,2]
[311280079,1705014461386,-2934.13231286,0.00019797,2]
[311280080,1705014461465,-12000.0,0.00019797,2]
[311280081,1705014461575,-5902.33374739,0.00019797,2]
[311280089,1705014520758,-457.43578176,0.00019797,2]
[311280090,1705014520860,-9.33542412,0.00019797,2]
[311280091,1705014521920,448.10035764,0.00019797,2]
[311280092,1705014521946,167.56194978,0.00019797,2]
[311280096,1705014527966,-874.79068657,0.00019796,2]
[311280097,1705014528104,-134.46801107,0.00019796,2]
[311280098,1705014528143,-20.59711628,0.00019796,2]
[311280099,1705014528366,988.66158136,0.00019796,2]
[311280100,1705014528393,1009.25869764,0.00019796,2]
[311280101,1705014528756,-711.05390006,0.00019796,2]
[311280102,1705014528784,-246.10686283,0.00019796,2]
[311280108,1705014535470,-672.9159467,0.00019795,2]
[311280109,1705014535587,-13.7329785,0.00019795,2]
[311280112,1705014542884,-12000.0,0.00019797,2]
[311280113,1705014543033,-12000.0,0.00019797,2]
[311280114,1705014543179,-12000.0,0.00019797,2]
[311280115,1705014543434,-12000.0,0.00019797,2]
[311280116,1705014543539,-12000.0,0.00019797,2]
[311280117,1705014543656,-12000.0,0.00019797,2]
[311280118,1705014543789,-9065.86768714,0.00019797,2]
[311280145,1705014600942,-603.34906127,0.00019797,2]
[311280146,1705014601064,-12.31324615,0.00019797,2]
[311280147,1705014601973,591.03581512,0.00019797,2]
[311280148,1705014602001,283.75487145,0.00019797,2]
[311280149,1705014606244,-665.32406249,0.00019797,2]
[311280150,1705014606352,-13.57804209,0.00019797,2]
[311280156,1705014607545,651.7460204,0.00019796,2]
[311280157,1705014607572,34.9029048,0.00019796,2]
[311280158,1705014608049,155.06512735,0.00019796,2]
[311280159,1705014611347,-12000.0,0.00019797,2]
[311280160,1705014611475,-12000.0,0.00019797,2]
[311280161,1705014611638,-12000.0,0.00019797,2]
[311280162,1705014611767,-12000.0,0.00019797,2]
[311280163,1705014611876,-12000.0,0.00019797,2]
[311280164,1705014611979,-12000.0,0.00019797,2]
[311280165,1705014612089,-9065.86768714,0.00019797,2]
[311280166,1705014613755,469.71701685,0.00019796,2]
[311280168,1705014616930,-603.34906127,0.00019796,2]
[311280169,1705014617256,-603.34906127,0.00019796,2]
[311280170,1705014617290,-864.00417679,0.00019796,2]
[311280171,1705014617317,-615.66230742,0.00019797,2]
[311280172,1705014622453,-831.38360289,0.00019797,2]
[311280173,1705014622630,-16.9670123,0.00019797,2]
[311280174,1705014623880,295.22863568,0.00019797,2]
[311280175,1705014624045,156.53489077,0.00019797,2]
[311280177,1705014625954,-672.9159467,0.00019797,2]
[311280178,1705014626134,-13.7329785,0.00019797,2]
[311280184,1705014630260,-460.32267651,0.00019797,2]
[311280185,1705014630358,-9.39434034,0.00019797,2]
[311280191,1705014631779,-216.10529905,0.00019798,2]
[311280193,1705014631788,-19663.58309656,0.00019798,2]
[311280196,1705014631798,-1036.1032784,0.00019798,2]
[311280198,1705014631807,-3803.71909746,0.00019798,2]
[311280202,1705014631819,-1000.0,0.00019798,2]
[311280205,1705014631831,-2707.83538834,0.00019798,2]
[311280207,1705014631841,-107.16657966,0.00019798,2]
[311280210,1705014632637,460.32267651,0.00019797,2]
[311280211,1705014633055,-1578.17203036,0.00019797,2]
[311280212,1705014633238,-32.20759246,0.00019797,2]
[311280213,1705014634421,552.60695283,0.00019796,2]
[311280215,1705014634950,993.35748507,0.00019797,2]
[311280216,1705014634976,1578.17203036,0.00019797,2]
[311280217,1705014635473,-12000.0,0.00019797,2]
[311280218,1705014635599,-12000.0,0.00019797,2]
[311280220,1705014635741,-12000.0,0.00019797,2]
[311280221,1705014635820,-12000.0,0.00019797,2]
[311280222,1705014635890,-12000.0,0.00019797,2]
[311280223,1705014636019,-12000.0,0.00019797,2]
[311280224,1705014636121,-6494.33817171,0.00019797,2]
[311280267,1705014637872,-7404.76451127,0.00019798,2]
[311280269,1705014637885,-5711.52731609,0.00019798,2]
[311280271,1705014637895,-1176.42336106,0.00019798,2]
[311280273,1705014637905,-191.21808048,0.00019801,2]
[311280275,1705014637915,-449.77827105,0.00019801,2]
[311280277,1705014637925,-155.33562235,0.00019801,2]
[311280279,1705014637935,-934.73620066,0.00019801,2]
[311280281,1705014637946,-400.64549025,0.00019801,2]
[311280284,1705014637957,-5824.12233106,0.00019805,2]
[311280285,1705014637968,-11160.07408416,0.00019812,2]
[311280286,1705014637978,-211.25430641,0.00019944,2]
[311280287,1705014637989,-173.44274134,0.00019944,2]
[311280288,1705014638000,-169.448898,0.0001995,2]
[311280289,1705014638138,-155.06823002,0.0002,2]
[311280290,1705014638149,-155.99114646,0.0002,2]
[311280291,1705014638159,-155.06512735,0.0002,2]
[311280293,1705014638170,-315.48561899,0.0002,2]
[311280294,1705014638179,-314.30408612,0.0002,2]
[311280296,1705014638189,-1195.27282006,0.0002,2]
[311280299,1705014638199,-853.72221584,0.0002,2]
[311280300,1705014638210,-262.220674,0.0002,2]
[311280303,1705014638220,-155.06512735,0.0002,2]
[311280305,1705014638231,-677.0708176,0.00020893,2]
[311280306,1705014638241,-569.37401545,0.00020893,2]
[311280309,1705014638250,-266.37190097,0.00020894,2]
[311280310,1705014638261,-155.06512735,0.00020895,2]
[311280313,1705014638271,-153.59913518,0.00020896,2]
[311280315,1705014638280,-244.54283713,0.00020897,2]
[311280316,1705014638290,-1191.56051076,0.00020897,2]
[311280318,1705014638299,-466.5672455,0.00020898,2]
[311280320,1705014638309,-2118.59199223,0.00020899,2]
[311280322,1705014638318,-155287.29545578,0.000209,2]
[311280324,1705014638328,-161.13707041,0.00020996,2]
[311280326,1705014638337,-478.51187948,0.00021,2]
[311280328,1705014638347,-185.06062567,0.00021897,2]
[311280330,1705014638356,-296.02443686,0.00022,2]
[311280332,1705014638366,-2076.82617599,0.00022,2]
[311280334,1705014638375,-3083.76102233,0.00022,2]
[311280336,1705014638385,-2093.45221107,0.00023,2]
[311280338,1705014638394,-9923.17263833,0.00023,2]
[311280340,1705014638403,-153.59913518,0.00023897,2]
[311280342,1705014638413,-419.15704755,0.000239,2]
[311280344,1705014638423,-614.12133667,0.00024,2]
[311280346,1705014638434,-4005.39956635,0.00024,2]
[311280348,1705014638443,-687.75702701,0.000247,2]
[311280350,1705014638453,-4711.91259146,0.00025,2]
[311280352,1705014638462,-155.06667867,0.00025,2]
[311280354,1705014638472,-155.06667867,0.00025,2]
[311280356,1705014638483,-257.19576168,0.00025,2]
[311280358,1705014638494,-628.01534016,0.00025,2]
[311280360,1705014638504,-200.0,0.00025479,2]
[311280362,1705014638514,-2152.84061378,0.00026,2]
[311280364,1705014638524,-622.93324063,0.00026717,2]
[311280366,1705014638534,-153.59913518,0.00026899,2]
[311280368,1705014638544,-526.10879761,0.000269,2]
[311280370,1705014638554,-155.06202481,0.00027,7]